[Event "Titled Tuesday Blitz June 27 Early 2023"]
[White "Poormosavi, Seyed Kian"]
[Black "Zheenbekov, Nurgazy"]
[WhiteFideId "12585807"]
[BlackFideId "13800485"]
[WhiteElo "2589"]
[BlackElo "2441"]
[Result "0-1"]
[Round "6"]
[TimeControl "180+2"]
[Date "2023.06.27"]
[WhiteClock "0:00:13"]
[BlackClock "0:00:17"]
[Board "109"]

1. Nf3 {[%clk 0:01:11]}  d5 {[%clk 0:02:58]} 2. g3 {[%clk 0:01:11]}  Nf6 {[%clk 0:02:58]} 3. Bg2 {[%clk 0:01:11]}  g6 {[%clk 0:02:58]} 4. O-O {[%clk 0:01:11]}  Bg7 {[%clk 0:02:58]} 5. d4 {[%clk 0:01:12]}  O-O {[%clk 0:02:57]} 6. c3 {[%clk 0:01:12]}  c6 {[%clk 0:02:57]} 7. Bf4 {[%clk 0:01:12]}  Bf5 {[%clk 0:02:57]} 8. Nbd2 {[%clk 0:01:12]}  Nbd7 {[%clk 0:02:56]} 9. Re1 {[%clk 0:01:12]}  Ne4 {[%clk 0:02:56]} 10. h3 {[%clk 0:01:11]}  h5 {[%clk 0:02:37]} 11. a4 {[%clk 0:01:07]}  Nxd2 {[%clk 0:02:24]} 12. Qxd2 {[%clk 0:01:07]}  Be4 {[%clk 0:02:24]} 13. Bh6 {[%clk 0:01:06]}  Re8 {[%clk 0:02:13]} 14. Bxg7 {[%clk 0:01:05]}  Kxg7 {[%clk 0:02:13]} 15. Nh4 {[%clk 0:01:06]}  Bxg2 {[%clk 0:02:12]} 16. Nxg2 {[%clk 0:01:07]}  e5 {[%clk 0:02:11]} 17. e3 {[%clk 0:01:07]}  e4 {[%clk 0:02:07]} 18. a5 {[%clk 0:01:07]}  Nf8 {[%clk 0:02:05]} 19. c4 {[%clk 0:01:05]}  Ne6 {[%clk 0:02:04]} 20. Rec1 {[%clk 0:01:04]}  Ng5 {[%clk 0:02:03]} 21. Ne1 {[%clk 0:00:54]}  Nxh3+ {[%clk 0:02:02]} 22. Kg2 {[%clk 0:00:54]}  Ng5 {[%clk 0:02:01]} 23. cxd5 {[%clk 0:00:44]}  cxd5 {[%clk 0:01:59]} 24. Qe2 {[%clk 0:00:43]}  Qd7 {[%clk 0:01:58]} 25. Kg1 {[%clk 0:00:42]}  Rh8 {[%clk 0:01:50]} 26. Rc5 {[%clk 0:00:40]}  h4 {[%clk 0:01:46]} 27. Rac1 {[%clk 0:00:38]}  hxg3 {[%clk 0:01:40]} 28. fxg3 {[%clk 0:00:39]}  Rh3 {[%clk 0:01:04]} 29. Qg2 {[%clk 0:00:38]}  Rah8 {[%clk 0:01:05]} 30. Rc7 {[%clk 0:00:36]}  Rh1+ {[%clk 0:01:04]} 31. Qxh1 {[%clk 0:00:36]}  Rxh1+ {[%clk 0:01:04]} 32. Kxh1 {[%clk 0:00:37]}  Qh3+ {[%clk 0:01:04]} 33. Kg1 {[%clk 0:00:37]}  Qxg3+ {[%clk 0:01:04]} 34. Kf1 {[%clk 0:00:38]}  Nh3 {[%clk 0:00:51]} 35. R1c2 {[%clk 0:00:36]}  Qxe3 {[%clk 0:00:45]} 36. Rxb7 {[%clk 0:00:36]}  Qf4+ {[%clk 0:00:41]} 37. Ke2 {[%clk 0:00:34]}  Qg4+ {[%clk 0:00:40]} 38. Kd2 {[%clk 0:00:34]}  Nf4 {[%clk 0:00:37]} 39. Rcc7 {[%clk 0:00:34]}  Qe2+ {[%clk 0:00:35]} 40. Kc3 {[%clk 0:00:33]}  Qxe1+ {[%clk 0:00:34]} 41. Kb3 {[%clk 0:00:34]}  Nd3 {[%clk 0:00:32]} 42. Rxf7+ {[%clk 0:00:34]}  Kh6 {[%clk 0:00:32]} 43. Ka4 {[%clk 0:00:32]}  Qa1+ {[%clk 0:00:27]} 44. Kb5 {[%clk 0:00:32]}  Qxb2+ {[%clk 0:00:26]} 45. Ka6 {[%clk 0:00:32]}  Qxd4 {[%clk 0:00:24]} 46. Rxa7 {[%clk 0:00:30]}  Qb4 {[%clk 0:00:21]} 47. Rae7 {[%clk 0:00:19]}  Nc5+ {[%clk 0:00:20]} 48. Ka7 {[%clk 0:00:19]}  Qxa5+ {[%clk 0:00:21]} 49. Kb8 {[%clk 0:00:19]}  Qb6+ {[%clk 0:00:20]} 50. Kc8 {[%clk 0:00:19]}  Qc6+ {[%clk 0:00:19]} 51. Kd8 {[%clk 0:00:19]}  Ne6+ {[%clk 0:00:17]} 52. Rxe6 {[%clk 0:00:13]}  Qxe6 {[%clk 0:00:17]} 0-1


[Site "https://www.chess.com"]

[Event "Titled Tuesday Blitz June 27 Early 2023"]
[White "Krutko, Anatoly"]
[Black "Mayaud, Raphael"]
[WhiteFideId "4185862"]
[BlackFideId "627151"]
[WhiteElo "2553"]
[BlackElo "2344"]
[Result "1-0"]
[Round "6"]
[TimeControl "180+2"]
[Date "2023.06.27"]
[WhiteClock "0:00:04"]
[BlackClock "0:00:00"]
[Board "115"]

1. d4 {[%clk 0:02:59]}  Nf6 {[%clk 0:02:57]} 2. c4 {[%clk 0:02:58]}  c5 {[%clk 0:02:57]} 3. d5 {[%clk 0:02:57]}  b5 {[%clk 0:02:57]} 4. Qc2 {[%clk 0:02:52]}  b4 {[%clk 0:02:56]} 5. e4 {[%clk 0:02:51]}  d6 {[%clk 0:02:52]} 6. Nf3 {[%clk 0:02:50]}  g6 {[%clk 0:02:51]} 7. e5 {[%clk 0:02:46]}  dxe5 {[%clk 0:02:27]} 8. Nxe5 {[%clk 0:02:46]}  Bg7 {[%clk 0:02:27]} 9. Nf3 {[%clk 0:02:44]}  O-O {[%clk 0:02:26]} 10. Bd3 {[%clk 0:02:43]}  Nbd7 {[%clk 0:02:19]} 11. O-O {[%clk 0:02:43]}  Ng4 {[%clk 0:02:17]} 12. Nbd2 {[%clk 0:02:39]}  Nge5 {[%clk 0:02:17]} 13. Nxe5 {[%clk 0:02:39]}  Nxe5 {[%clk 0:02:17]} 14. Nb3 {[%clk 0:02:39]}  Nxd3 {[%clk 0:02:15]} 15. Qxd3 {[%clk 0:02:40]}  Bf5 {[%clk 0:02:15]} 16. Qe3 {[%clk 0:02:36]}  Rc8 {[%clk 0:02:02]} 17. Re1 {[%clk 0:02:27]}  Re8 {[%clk 0:01:57]} 18. Qg3 {[%clk 0:02:13]}  a5 {[%clk 0:01:34]} 19. a4 {[%clk 0:01:48]}  Bc2 {[%clk 0:01:18]} 20. Bd2 {[%clk 0:00:45]}  Bxb2 {[%clk 0:01:04]} 21. Ra2 {[%clk 0:00:45]}  Bxb3 {[%clk 0:01:01]} 22. Qxb3 {[%clk 0:00:45]}  Bd4 {[%clk 0:01:00]} 23. Be3 {[%clk 0:00:44]}  e5 {[%clk 0:00:55]} 24. Bxd4 {[%clk 0:00:40]}  exd4 {[%clk 0:00:46]} 25. Rae2 {[%clk 0:00:41]}  Rxe2 {[%clk 0:00:47]} 26. Rxe2 {[%clk 0:00:42]}  Qd7 {[%clk 0:00:40]} 27. h4 {[%clk 0:00:30]}  Re8 {[%clk 0:00:40]} 28. Qh3 {[%clk 0:00:29]}  Qd8 {[%clk 0:00:32]} 29. Rxe8+ {[%clk 0:00:22]}  Qxe8 {[%clk 0:00:33]} 30. d6 {[%clk 0:00:21]}  Qe1+ {[%clk 0:00:32]} 31. Kh2 {[%clk 0:00:21]}  Qe5+ {[%clk 0:00:24]} 32. g3 {[%clk 0:00:14]}  Qxd6 {[%clk 0:00:24]} 33. h5 {[%clk 0:00:13]}  gxh5 {[%clk 0:00:22]} 34. Qxh5 {[%clk 0:00:12]}  h6 {[%clk 0:00:18]} 35. Qg4+ {[%clk 0:00:12]}  Kh7 {[%clk 0:00:13]} 36. Qf5+ {[%clk 0:00:11]}  Qg6 {[%clk 0:00:12]} 37. Qxc5 {[%clk 0:00:11]}  d3 {[%clk 0:00:13]} 38. Qd4 {[%clk 0:00:10]}  Qf5 {[%clk 0:00:13]} 39. c5 {[%clk 0:00:09]}  Kg6 {[%clk 0:00:11]} 40. c6 {[%clk 0:00:08]}  f6 {[%clk 0:00:11]} 41. c7 {[%clk 0:00:07]}  Qh5+ {[%clk 0:00:08]} 42. Kg2 {[%clk 0:00:07]}  Qf5 {[%clk 0:00:09]} 43. Qd8 {[%clk 0:00:05]}  d2 {[%clk 0:00:06]} 44. Qxd2 {[%clk 0:00:02]}  Qe4+ {[%clk 0:00:05]} 45. Kh2 {[%clk 0:00:03]}  Qc6 {[%clk 0:00:04]} 46. Qd8 {[%clk 0:00:03]}  Qf3 {[%clk 0:00:00]} 47. Kg1 {[%clk 0:00:04]} 1-0


[Site "https://www.chess.com"]

[Event "Titled Tuesday Blitz June 27 Early 2023"]
[White "Delorme, Axel"]
[Black "Sariego Figueredo, Wilfredo"]
[WhiteFideId "632023"]
[BlackFideId "3500080"]
[WhiteElo "2539"]
[BlackElo "2223"]
[Result "1-0"]
[Round "6"]
[TimeControl "180+2"]
[Date "2023.06.27"]
[WhiteClock "0:00:08"]
[BlackClock "0:00:00"]
[Board "117"]

1. e4 {[%clk 0:03:00]}  c5 {[%clk 0:03:00]} 2. Nf3 {[%clk 0:02:59]}  a6 {[%clk 0:03:00]} 3. c3 {[%clk 0:02:59]}  e6 {[%clk 0:03:01]} 4. d4 {[%clk 0:02:59]}  d5 {[%clk 0:03:00]} 5. exd5 {[%clk 0:02:58]}  exd5 {[%clk 0:02:56]} 6. Bf4 {[%clk 0:02:55]}  Nf6 {[%clk 0:02:56]} 7. Bd3 {[%clk 0:02:54]}  c4 {[%clk 0:02:53]} 8. Bc2 {[%clk 0:02:54]}  Bd6 {[%clk 0:02:54]} 9. Qe2+ {[%clk 0:02:49]}  Be6 {[%clk 0:02:44]} 10. Bxd6 {[%clk 0:02:49]}  Qxd6 {[%clk 0:02:45]} 11. Ng5 {[%clk 0:02:45]}  O-O {[%clk 0:02:43]} 12. Nxe6 {[%clk 0:02:44]}  fxe6 {[%clk 0:02:42]} 13. Nd2 {[%clk 0:02:34]}  Nc6 {[%clk 0:02:41]} 14. Nf3 {[%clk 0:02:32]}  Rae8 {[%clk 0:02:25]} 15. Ne5 {[%clk 0:02:29]}  Nd7 {[%clk 0:02:25]} 16. Nxc6 {[%clk 0:02:08]}  Qxc6 {[%clk 0:02:21]} 17. O-O {[%clk 0:02:02]}  e5 {[%clk 0:02:20]} 18. dxe5 {[%clk 0:02:00]}  Rxe5 {[%clk 0:02:21]} 19. Qd2 {[%clk 0:01:55]}  Nc5 {[%clk 0:02:20]} 20. Rae1 {[%clk 0:01:45]}  Rfe8 {[%clk 0:02:15]} 21. Rxe5 {[%clk 0:01:42]}  Rxe5 {[%clk 0:02:16]} 22. Qd4 {[%clk 0:01:36]}  Re2 {[%clk 0:02:06]} 23. Rc1 {[%clk 0:00:50]}  Qe6 {[%clk 0:01:57]} 24. h4 {[%clk 0:00:43]}  Nd7 {[%clk 0:01:51]} 25. Qf4 {[%clk 0:00:36]}  g6 {[%clk 0:01:27]} 26. h5 {[%clk 0:00:33]}  Qe5 {[%clk 0:01:00]} 27. Qxe5 {[%clk 0:00:30]}  Rxe5 {[%clk 0:00:51]} 28. hxg6 {[%clk 0:00:29]}  hxg6 {[%clk 0:00:51]} 29. Bxg6 {[%clk 0:00:29]}  Re2 {[%clk 0:00:51]} 30. Bc2 {[%clk 0:00:26]}  Nc5 {[%clk 0:00:43]} 31. Kf1 {[%clk 0:00:26]}  Re6 {[%clk 0:00:42]} 32. Re1 {[%clk 0:00:26]}  Rxe1+ {[%clk 0:00:39]} 33. Kxe1 {[%clk 0:00:26]}  Kf7 {[%clk 0:00:40]} 34. Ke2 {[%clk 0:00:26]}  Kf6 {[%clk 0:00:40]} 35. Ke3 {[%clk 0:00:27]}  Ke5 {[%clk 0:00:40]} 36. f4+ {[%clk 0:00:27]}  Kf6 {[%clk 0:00:41]} 37. g3 {[%clk 0:00:17]}  Ne6 {[%clk 0:00:40]} 38. f5 {[%clk 0:00:15]}  Ng5 {[%clk 0:00:34]} 39. Kd4 {[%clk 0:00:16]}  Nf3+ {[%clk 0:00:17]} 40. Kxd5 {[%clk 0:00:15]}  Ne5 {[%clk 0:00:18]} 41. Kd4 {[%clk 0:00:10]}  b5 {[%clk 0:00:18]} 42. Be4 {[%clk 0:00:10]}  Ng4 {[%clk 0:00:16]} 43. Kc5 {[%clk 0:00:09]}  Ne5 {[%clk 0:00:00]} 44. Kb6 {[%clk 0:00:08]} 1-0


[Site "https://www.chess.com"]

[Event "Titled Tuesday Blitz June 27 Early 2023"]
[White "Liu, Xiangyi"]
[Black "Balint, Vilmos"]
[WhiteFideId "8605718"]
[BlackFideId "718050"]
[WhiteElo "2732"]
[BlackElo "2238"]
[Result "1-0"]
[Round "6"]
[TimeControl "180+2"]
[Date "2023.06.27"]
[WhiteClock "0:01:18"]
[BlackClock "0:01:36"]
[Board "118"]

1. b3 {[%clk 0:03:00]}  a5 {[%clk 0:02:56]} 2. e4 {[%clk 0:02:59]}  a4 {[%clk 0:02:57]} 3. Bb2 {[%clk 0:02:55]}  Nf6 {[%clk 0:02:56]} 4. e5 {[%clk 0:02:54]}  Nd5 {[%clk 0:02:56]} 5. c4 {[%clk 0:02:55]}  Nb6 {[%clk 0:02:56]} 6. d4 {[%clk 0:02:53]}  d6 {[%clk 0:02:56]} 7. Nf3 {[%clk 0:02:52]}  Nc6 {[%clk 0:02:54]} 8. e6 {[%clk 0:02:42]}  fxe6 {[%clk 0:02:41]} 9. Bd3 {[%clk 0:02:42]}  e5 {[%clk 0:02:36]} 10. dxe5 {[%clk 0:02:38]}  dxe5 {[%clk 0:02:36]} 11. Ng5 {[%clk 0:02:29]}  g6 {[%clk 0:02:23]} 12. Nxh7 {[%clk 0:02:20]}  Rxh7 {[%clk 0:02:24]} 13. Bxg6+ {[%clk 0:02:20]}  Rf7 {[%clk 0:02:24]} 14. Qh5 {[%clk 0:01:59]}  Be6 {[%clk 0:02:21]} 15. O-O {[%clk 0:01:59]}  axb3 {[%clk 0:02:12]} 16. axb3 {[%clk 0:02:00]}  Rxa1 {[%clk 0:02:11]} 17. Bxa1 {[%clk 0:02:01]}  Nd4 {[%clk 0:02:12]} 18. f4 {[%clk 0:01:56]}  Qd7 {[%clk 0:02:00]} 19. fxe5 {[%clk 0:01:30]}  Kd8 {[%clk 0:01:38]} 20. Bxf7 {[%clk 0:01:28]}  Bg4 {[%clk 0:01:38]} 21. Qh8 {[%clk 0:01:24]}  Ne2+ {[%clk 0:01:38]} 22. Kh1 {[%clk 0:01:24]}  Qd3 {[%clk 0:01:36]} 23. Qxf8+ {[%clk 0:01:18]} 1-0


[Site "https://www.chess.com"]

[Event "Titled Tuesday Blitz June 27 Early 2023"]
[White "Mazurkiewicz, Michal"]
[Black "Liyanage, Ranindu Dilshan"]
[WhiteFideId "1124943"]
[BlackFideId "9915834"]
[WhiteElo "2460"]
[BlackElo "2664"]
[Result "0-1"]
[Round "6"]
[TimeControl "180+2"]
[Date "2023.06.27"]
[WhiteClock "0:00:00"]
[BlackClock "0:01:29"]
[Board "119"]

1. e4 {[%clk 0:02:59]}  g6 {[%clk 0:02:59]} 2. d4 {[%clk 0:02:59]}  Bg7 {[%clk 0:03:00]} 3. Nf3 {[%clk 0:02:59]}  d6 {[%clk 0:03:01]} 4. Nc3 {[%clk 0:02:57]}  a6 {[%clk 0:03:01]} 5. a4 {[%clk 0:02:57]}  Nf6 {[%clk 0:03:01]} 6. g3 {[%clk 0:02:52]}  b6 {[%clk 0:03:00]} 7. Bg2 {[%clk 0:02:52]}  Bb7 {[%clk 0:03:00]} 8. Qe2 {[%clk 0:02:43]}  O-O {[%clk 0:02:56]} 9. O-O {[%clk 0:02:43]}  Nc6 {[%clk 0:02:50]} 10. e5 {[%clk 0:02:42]}  Ne8 {[%clk 0:02:44]} 11. e6 {[%clk 0:02:30]}  Nxd4 {[%clk 0:02:25]} 12. exf7+ {[%clk 0:01:49]}  Rxf7 {[%clk 0:02:26]} 13. Nxd4 {[%clk 0:01:47]}  Bxg2 {[%clk 0:02:21]} 14. Kxg2 {[%clk 0:01:06]}  Bxd4 {[%clk 0:02:20]} 15. Nd5 {[%clk 0:01:07]}  Qd7 {[%clk 0:02:03]} 16. c3 {[%clk 0:01:02]}  Bg7 {[%clk 0:02:01]} 17. Re1 {[%clk 0:00:55]}  e5 {[%clk 0:02:01]} 18. Be3 {[%clk 0:00:41]}  Nf6 {[%clk 0:02:00]} 19. Qc4 {[%clk 0:00:30]}  Raf8 {[%clk 0:01:53]} 20. Nxf6+ {[%clk 0:00:29]}  Bxf6 {[%clk 0:01:54]} 21. Qxa6 {[%clk 0:00:29]}  Bg5 {[%clk 0:01:43]} 22. Qe2 {[%clk 0:00:05]}  Qc6+ {[%clk 0:01:34]} 23. Kg1 {[%clk 0:00:06]}  Bxe3 {[%clk 0:01:32]} 24. Qxe3 {[%clk 0:00:07]}  Rf3 {[%clk 0:01:32]} 25. Qe2 {[%clk 0:00:08]}  h5 {[%clk 0:01:32]} 26. h4 {[%clk 0:00:07]}  Qc5 {[%clk 0:01:29]} 27. Kg2 {[%clk 0:00:00]}  Rxf2+ {[%clk 0:01:29]} 0-1


[Site "https://www.chess.com"]

[Event "Titled Tuesday Blitz June 27 Early 2023"]
[White "Aldokhin, Ivan"]
[Black "LangesNasenhaar"]
[WhiteFideId "24115720"]
[WhiteElo "2611"]
[BlackElo "2449"]
[Result "0-1"]
[Round "6"]
[TimeControl "180+2"]
[Date "2023.06.27"]
[WhiteClock "0:00:07"]
[BlackClock "0:00:15"]
[Board "121"]

1. e4 {[%clk 0:02:58]}  d6 {[%clk 0:02:59]} 2. d4 {[%clk 0:02:58]}  Nf6 {[%clk 0:02:59]} 3. Nc3 {[%clk 0:02:58]}  e5 {[%clk 0:03:00]} 4. Nf3 {[%clk 0:02:58]}  Nbd7 {[%clk 0:03:00]} 5. Bc4 {[%clk 0:02:55]}  Be7 {[%clk 0:03:01]} 6. g4 {[%clk 0:02:54]}  exd4 {[%clk 0:02:50]} 7. Qxd4 {[%clk 0:02:51]}  O-O {[%clk 0:02:41]} 8. g5 {[%clk 0:02:51]}  Ng4 {[%clk 0:02:40]} 9. Be3 {[%clk 0:02:52]}  c6 {[%clk 0:02:29]} 10. O-O-O {[%clk 0:02:46]}  b5 {[%clk 0:02:21]} 11. Be2 {[%clk 0:02:45]}  Nxe3 {[%clk 0:02:20]} 12. Qxe3 {[%clk 0:02:45]}  Qb6 {[%clk 0:02:19]} 13. Nd4 {[%clk 0:02:40]}  Ne5 {[%clk 0:01:58]} 14. f4 {[%clk 0:02:35]}  Nc4 {[%clk 0:01:58]} 15. Bxc4 {[%clk 0:02:30]}  bxc4 {[%clk 0:01:59]} 16. f5 {[%clk 0:02:22]}  f6 {[%clk 0:01:49]} 17. g6 {[%clk 0:02:11]}  h6 {[%clk 0:01:47]} 18. Nce2 {[%clk 0:02:11]}  Rb8 {[%clk 0:01:38]} 19. Qc3 {[%clk 0:02:08]}  d5 {[%clk 0:01:35]} 20. exd5 {[%clk 0:02:09]}  cxd5 {[%clk 0:01:33]} 21. a3 {[%clk 0:01:50]}  Bd6 {[%clk 0:01:23]} 22. Rhf1 {[%clk 0:01:38]}  Be5 {[%clk 0:01:21]} 23. Nf4 {[%clk 0:01:39]}  Rd8 {[%clk 0:00:47]} 24. Rd2 {[%clk 0:01:21]}  Bxf5 {[%clk 0:00:44]} 25. Nxd5 {[%clk 0:00:42]}  Rxd5 {[%clk 0:00:42]} 26. Rxf5 {[%clk 0:00:40]}  Bxd4 {[%clk 0:00:31]} 27. Qxc4 {[%clk 0:00:40]}  Qxb2+ {[%clk 0:00:30]} 28. Kd1 {[%clk 0:00:40]}  Qa1+ {[%clk 0:00:24]} 29. Ke2 {[%clk 0:00:38]}  Re8+ {[%clk 0:00:23]} 30. Kf3 {[%clk 0:00:37]}  Qh1+ {[%clk 0:00:22]} 31. Kg4 {[%clk 0:00:22]}  Qe4+ {[%clk 0:00:21]} 32. Rf4 {[%clk 0:00:19]}  Qxg6+ {[%clk 0:00:21]} 33. Kf3 {[%clk 0:00:18]}  Qh5+ {[%clk 0:00:20]} 34. Kg2 {[%clk 0:00:13]}  Kh8 {[%clk 0:00:16]} 35. Rfxd4 {[%clk 0:00:13]}  Rg5+ {[%clk 0:00:15]} 36. Kf1 {[%clk 0:00:09]}  Qh3+ {[%clk 0:00:15]} 37. Kf2 {[%clk 0:00:07]}  Qxh2+ {[%clk 0:00:15]} 38. Kf3 {[%clk 0:00:07]}  Rg3+ {[%clk 0:00:15]} 39. Kf4 {[%clk 0:00:07]}  Qh4+ {[%clk 0:00:15]} 40. Kf5 {[%clk 0:00:07]}  Rg5# {[%clk 0:00:15]} 0-1


[Site "https://www.chess.com"]

[Event "Titled Tuesday Blitz June 27 Early 2023"]
[White "Rios Escobar, Adan"]
[Black "MKlose11"]
[WhiteFideId "3403645"]
[WhiteElo "2444"]
[BlackElo "2596"]
[Result "0-1"]
[Round "6"]
[TimeControl "180+2"]
[Date "2023.06.27"]
[WhiteClock "0:00:00"]
[BlackClock "0:00:51"]
[Board "122"]

1. d4 {[%clk 0:02:45]}  Nf6 {[%clk 0:02:59]} 2. g3 {[%clk 0:02:45]}  c5 {[%clk 0:03:00]} 3. d5 {[%clk 0:02:45]}  b5 {[%clk 0:03:00]} 4. a4 {[%clk 0:02:45]}  b4 {[%clk 0:03:00]} 5. c4 {[%clk 0:02:45]}  bxc3 {[%clk 0:02:59]} 6. Nxc3 {[%clk 0:02:45]}  d6 {[%clk 0:03:00]} 7. e4 {[%clk 0:02:44]}  g6 {[%clk 0:03:00]} 8. Bb5+ {[%clk 0:02:41]}  Bd7 {[%clk 0:02:59]} 9. Nf3 {[%clk 0:02:28]}  Bg7 {[%clk 0:02:46]} 10. e5 {[%clk 0:02:26]}  dxe5 {[%clk 0:02:44]} 11. Nxe5 {[%clk 0:02:26]}  O-O {[%clk 0:02:45]} 12. O-O {[%clk 0:02:21]}  a6 {[%clk 0:02:30]} 13. Bxd7 {[%clk 0:01:44]}  Nfxd7 {[%clk 0:02:28]} 14. Nc6 {[%clk 0:01:40]}  Nxc6 {[%clk 0:02:26]} 15. dxc6 {[%clk 0:01:41]}  Ne5 {[%clk 0:02:26]} 16. Be3 {[%clk 0:01:07]}  c4 {[%clk 0:02:22]} 17. Qxd8 {[%clk 0:01:00]}  Rfxd8 {[%clk 0:02:20]} 18. c7 {[%clk 0:00:44]}  Rd7 {[%clk 0:02:14]} 19. Bb6 {[%clk 0:00:44]}  Nd3 {[%clk 0:02:06]} 20. Rfd1 {[%clk 0:00:36]}  Rc8 {[%clk 0:02:05]} 21. a5 {[%clk 0:00:34]}  e6 {[%clk 0:02:03]} 22. Ra4 {[%clk 0:00:28]}  Rdxc7 {[%clk 0:01:59]} 23. Bxc7 {[%clk 0:00:21]}  Rxc7 {[%clk 0:02:00]} 24. Rd2 {[%clk 0:00:13]}  h5 {[%clk 0:01:48]} 25. Nd1 {[%clk 0:00:13]}  Nxb2 {[%clk 0:01:34]} 26. Nxb2 {[%clk 0:00:12]}  c3 {[%clk 0:01:33]} 27. Rd8+ {[%clk 0:00:08]}  Kh7 {[%clk 0:01:33]} 28. Nd3 {[%clk 0:00:09]}  Rb7 {[%clk 0:01:27]} 29. Rc4 {[%clk 0:00:08]}  Rb5 {[%clk 0:01:25]} 30. Rdc8 {[%clk 0:00:08]}  Rxa5 {[%clk 0:01:25]} 31. Rxc3 {[%clk 0:00:07]}  Bxc3 {[%clk 0:01:22]} 32. Rxc3 {[%clk 0:00:08]}  Kg7 {[%clk 0:01:23]} 33. Rc7 {[%clk 0:00:08]}  Kf6 {[%clk 0:01:22]} 34. Ra7 {[%clk 0:00:08]}  h4 {[%clk 0:01:19]} 35. f4 {[%clk 0:00:08]}  h3 {[%clk 0:01:11]} 36. Ne5 {[%clk 0:00:07]}  Kf5 {[%clk 0:01:07]} 37. Rxf7+ {[%clk 0:00:08]}  Ke4 {[%clk 0:01:07]} 38. Rd7 {[%clk 0:00:02]}  Ra1+ {[%clk 0:01:06]} 39. Kf2 {[%clk 0:00:02]}  Ra2+ {[%clk 0:01:07]} 40. Ke1 {[%clk 0:00:02]}  Rxh2 {[%clk 0:01:05]} 41. Nxg6 {[%clk 0:00:03]}  Rg2 {[%clk 0:00:57]} 42. Rh7 {[%clk 0:00:03]}  h2 {[%clk 0:00:50]} 43. Kf1 {[%clk 0:00:01]}  Rg1+ {[%clk 0:00:49]} 44. Kf2 {[%clk 0:00:01]}  h1=Q {[%clk 0:00:50]} 45. Rxh1 {[%clk 0:00:00]}  Rxh1 {[%clk 0:00:51]} 0-1


[Site "https://www.chess.com"]

[Event "Titled Tuesday Blitz June 27 Early 2023"]
[White "Piesik, Piotr"]
[Black "Pandey Srishti"]
[WhiteFideId "1136194"]
[BlackFideId "35093290"]
[WhiteElo "2595"]
[BlackElo "2436"]
[Result "0-1"]
[Round "6"]
[TimeControl "180+2"]
[Date "2023.06.27"]
[WhiteClock "0:00:17"]
[BlackClock "0:00:05"]
[Board "123"]

1. Nf3 {[%clk 0:02:58]}  Nf6 {[%clk 0:02:59]} 2. g3 {[%clk 0:02:58]}  g6 {[%clk 0:03:00]} 3. Bg2 {[%clk 0:02:59]}  Bg7 {[%clk 0:03:01]} 4. O-O {[%clk 0:03:00]}  O-O {[%clk 0:03:02]} 5. d4 {[%clk 0:03:00]}  d6 {[%clk 0:03:01]} 6. Nbd2 {[%clk 0:03:00]}  Nbd7 {[%clk 0:02:58]} 7. e4 {[%clk 0:03:00]}  e5 {[%clk 0:02:58]} 8. dxe5 {[%clk 0:03:01]}  Nxe5 {[%clk 0:02:57]} 9. Nxe5 {[%clk 0:03:01]}  dxe5 {[%clk 0:02:58]} 10. Qe2 {[%clk 0:03:02]}  c6 {[%clk 0:02:58]} 11. a4 {[%clk 0:03:02]}  Qc7 {[%clk 0:02:58]} 12. Nc4 {[%clk 0:03:02]}  Be6 {[%clk 0:02:56]} 13. Be3 {[%clk 0:02:59]}  Rfd8 {[%clk 0:02:52]} 14. a5 {[%clk 0:02:57]}  Nd7 {[%clk 0:02:44]} 15. Rfd1 {[%clk 0:02:54]}  b5 {[%clk 0:02:38]} 16. axb6 {[%clk 0:02:54]}  axb6 {[%clk 0:02:39]} 17. Rxa8 {[%clk 0:02:43]}  Rxa8 {[%clk 0:02:40]} 18. h4 {[%clk 0:02:27]}  b5 {[%clk 0:02:40]} 19. Nd2 {[%clk 0:02:26]}  c5 {[%clk 0:02:35]} 20. Qxb5 {[%clk 0:02:21]}  Rb8 {[%clk 0:02:33]} 21. Qd3 {[%clk 0:02:17]}  Rxb2 {[%clk 0:02:28]} 22. Nc4 {[%clk 0:02:17]}  Rb4 {[%clk 0:02:24]} 23. Qd6 {[%clk 0:02:15]}  Qxd6 {[%clk 0:02:09]} 24. Nxd6 {[%clk 0:02:15]}  Bf8 {[%clk 0:02:09]} 25. Bf1 {[%clk 0:02:03]}  Rb2 {[%clk 0:02:03]} 26. Bc4 {[%clk 0:01:57]}  Bxc4 {[%clk 0:01:52]} 27. Nxc4 {[%clk 0:01:58]}  Rxc2 {[%clk 0:01:51]} 28. Na5 {[%clk 0:01:39]}  Nf6 {[%clk 0:01:43]} 29. Rd8 {[%clk 0:01:37]}  Kg7 {[%clk 0:01:43]} 30. f3 {[%clk 0:01:36]}  c4 {[%clk 0:01:37]} 31. Rc8 {[%clk 0:01:30]}  c3 {[%clk 0:01:37]} 32. Nc4 {[%clk 0:01:23]}  Nd7 {[%clk 0:01:34]} 33. Rc7 {[%clk 0:01:20]}  Nb8 {[%clk 0:00:17]} 34. Nxe5 {[%clk 0:01:19]}  Bd6 {[%clk 0:00:17]} 35. Rxf7+ {[%clk 0:01:16]}  Kg8 {[%clk 0:00:17]} 36. Bh6 {[%clk 0:01:16]}  Rd2 {[%clk 0:00:13]} 37. Rf6 {[%clk 0:01:01]}  Rd1+ {[%clk 0:00:09]} 38. Kg2 {[%clk 0:01:00]}  c2 {[%clk 0:00:09]} 39. Nc4 {[%clk 0:00:56]}  Be7 {[%clk 0:00:07]} 40. Rb6 {[%clk 0:00:51]}  Nd7 {[%clk 0:00:07]} 41. Rb7 {[%clk 0:00:51]}  Bf8 {[%clk 0:00:04]} 42. Bf4 {[%clk 0:00:48]}  Nc5 {[%clk 0:00:04]} 43. Rc7 {[%clk 0:00:35]}  Nd3 {[%clk 0:00:04]} 44. Be3 {[%clk 0:00:29]}  Re1 {[%clk 0:00:04]} 45. Bg5 {[%clk 0:00:27]}  h6 {[%clk 0:00:04]} 46. Nb6 {[%clk 0:00:24]}  hxg5 {[%clk 0:00:03]} 47. Rxc2 {[%clk 0:00:23]}  gxh4 {[%clk 0:00:03]} 48. gxh4 {[%clk 0:00:23]}  Rb1 {[%clk 0:00:04]} 49. Rd2 {[%clk 0:00:20]}  Nf4+ {[%clk 0:00:03]} 50. Kg3 {[%clk 0:00:20]}  Nh5+ {[%clk 0:00:04]} 51. Kg4 {[%clk 0:00:17]}  Rxb6 {[%clk 0:00:05]} 0-1


[Site "https://www.chess.com"]